Cogmind - Beta 10.2 @@@ ROGUE MODE // 2020.11.28 @ 01:50:24 // Halloween2020/ForbiddenLore Player: Hermelin Result: Destroyed by DAS Turret with DAS Cannon Performance ------------- Evolutions (1) 500 Regions Visited (5) 1000 Robots Destroyed (70) 350 Value Destroyed (1459) 1459 Prototype IDs (41) 820 Alien Tech Used (0) 0 Bonus (-83) -83 TOTAL SCORE: 4046 Bonus ------- High Alert Combat Kills 27 Follower Combat Kills 46 Aligned with FarCom 300 Friendly Fire -456 Cogmind --------- Core Integrity 0/400 Matter 176/300 Energy 129/150 System Corruption 0% Temperature Cool (0) Movement Treading (192) Ox2 Location -9/Exiles Parts ------- > --- POWER (1) -------- Light Neutrino Core > --- PROPULSION (2) --- Improved Treads Advanced Treads > --- UTILITY (4) ------ High-capacity Storage Unit Humpback > --- WEAPON (2) ------- Improved Assault Rifle Assault Cannon > --- INVENTORY (32) --- Improved Treads Improved Treads High-capacity Storage Unit High-capacity Storage Unit Humpback High-capacity Matter Pod (200) Experimental Sensor Array Improved Signal Interpreter Experimental Targeting Computer Hacking Suite Hacking Suite High-powered Tractor Beam AS-neutralizer No. 17b Improved Assault Rifle Improved Assault Rifle Improved Assault Rifle Improved Assault Rifle Improved Assault Rifle Assault Cannon Mini Grenade Launcher Mini Grenade Launcher Datajack Plasma Cutter Makeshift Axe Peak State ------------ > --- POWER ------------ Heavy Ion Engine > --- PROPULSION ------- Advanced Treads Advanced Treads > --- UTILITY ---------- High-capacity Storage Unit High-capacity Storage Unit High-capacity Storage Unit Experimental Sensor Array > --- WEAPON ----------- Improved Assault Rifle Assault Cannon > --- INVENTORY -------- Light Angular Momentum Engine Improved Treads Improved Treads Improved Treads Advanced Treads Advanced Treads Medium Storage Unit Medium Storage Unit High-capacity Matter Pod Improved Signal Interpreter Hardened Light Armor Plating Hacking Suite Hacking Suite High-powered Tractor Beam EM Pulse Gun EM Pulse Gun Improved Assault Rifle Improved Assault Rifle Improved Assault Rifle Improved Assault Rifle Improved Assault Rifle Improved Assault Rifle Improved Assault Rifle Assault Cannon Mini Grenade Launcher Mini Grenade Launcher Datajack Makeshift Axe [Rating: 30] Favorites ----------- Power Heavy Ion Engine Engine Heavy Ion Engine Power Core Light Neutrino Core Propulsion Advanced Treads Treads Advanced Treads Utility High-capacity Storage Unit Device Tractor Beam Storage High-capacity Storage Unit Hackware Hacking Suite Protection Propulsion Shielding Weapon Improved Assault Rifle Ballistic Gun Improved Assault Rifle Ballistic Cannon Light Cannon Launcher Mini Grenade Launcher Special Melee Weapon Datajack Build | -11 -10 -10 -9 -9 -9 ------- Run | Scr Mat Min Mat Min Exi Slots Evolved 2 | . . . 2 . . Power . | . . . . . . Propulsion . | . . . . . . Utility 2 | . . . 2 . . Weapon . | . . . . . . Parts Attached 47 | 7 8 3 13 4 12 Power 6 | 1 1 . 2 . 2 Engine 5 | 1 1 . 2 . 1 Core 1 | . . . . . 1 Reactor . | . . . . . . Propulsion 12 | 2 1 . 6 . 3 Treads 12 | 2 1 . 6 . 3 Leg . | . . . . . . Wheel . | . . . . . . Hover . | . . . . . . Flight . | . . . . . . Utility 11 | 2 3 . 2 2 2 Device 2 | 1 . . . 1 . Storage 5 | 1 2 . 1 . 1 Processor . | . . . . . . Hackware 1 | . 1 . . . . Protection 3 | . . . 1 1 1 Artifact . | . . . . . . Weapon 18 | 2 3 3 3 2 5 Energy Gun . | . . . . . . Energy Cannon . | . . . . . . Ballistic Gun 8 | 2 . 1 2 1 2 Ballistic Cannon 5 | . 2 1 1 . 1 Launcher 4 | . 1 1 . 1 1 Special Weapon . | . . . . . . Impact Weapon . | . . . . . . Slashing Weapon . | . . . . . . Piercing Weapon . | . . . . . . Special Melee Weapon 1 | . . . . . 1 Unidentified Prototypes 3 | . . . 2 1 . Parts Lost 10 | . . . 1 . 9 Power 2 | . . . . . 2 Propulsion 4 | . . . 1 . 3 Utility 2 | . . . . . 2 Weapon 2 | . . . . . 2 Highest Loss Streak 5 | . . . 1 . 5 Average Slot Usage (%) 96 | . 99 100 97 100 93 Engine 11 | . 14 14 11 11 10 Treads 23 | . 27 28 22 22 22 Storage 28 | . 21 28 32 33 27 Protection 7 | . . . 9 10 10 Ballistic Gun 12 | . 18 14 11 6 12 Ballistic Cannon 7 | . 8 11 11 11 2 Launcher 2 | . . 2 . 4 6 Naked Turns . | . . . . . . Heaviest Build 132 | 13 73 73 113 113 132 Greatest Support 46 | 40 40 40 46 44 44 Greatest Overweight (x) 2 | . 1 1 2 2 2 Average Overweight (x) 1 | . . 1 1 2 1 Largest Inventory Capacity 32 | 6 20 20 28 28 32 Average Capacity 24 | 5 14 20 27 28 30 Most Carried 32 | 4 20 20 28 28 32 Average Carried 24 | 1 14 19 27 27 28 Final Capacity 32 | 6 20 20 28 28 32 Final Carried 28 | 4 19 20 28 28 25 Class Distribution -------------------- 88% | Hauler-Mutant 11% | Mutant Dominant Class ---------------- Hauler-Mutant | -10/Materials Hauler-Mutant | -10/Mines Hauler-Mutant | -9/Materials Hauler-Mutant | -9/Mines Hauler-Mutant | -9/Exiles Resources | -11 -10 -10 -9 -9 -9 ----------- Run | Scr Mat Min Mat Min Exi Matter Collected 1886 | 262 439 138 592 206 249 Remotely 149 | 131 18 . . . . Salvage Created 2351 | 70 937 . 951 236 157 Parts 146 | 1 58 . 59 17 11 Haulers Intercepted 7 | . 2 . 5 . . Recyclers Shooed 2 | . 1 . 1 . . Parts Field Recycled . | . . . . . . Retrieved Matter . | . . . . . . Parts Self-Destructed . | . . . . . . Prevented . | . . . . . . Kills | -11 -10 -10 -9 -9 -9 ------- Run | Scr Mat Min Mat Min Exi Combat Hostiles Destroyed 52 | . 21 . 18 7 6 Guns 28 | . 14 . 10 2 2 Cannons 13 | . 4 . 8 1 . AOE 11 | . 3 . . 4 4 Classes Destroyed 11 | 1 5 . 2 2 1 Worker 1 | . . . 1 . . Builder 1 | . . . . 1 . Hauler 7 | . 2 . 5 . . Recycler 4 | 1 2 . . 1 . Operator 4 | . 2 . 2 . . Watcher 5 | . 2 . 3 . . Swarmer 16 | . 9 . 3 4 . Grunt 23 | . 12 . 9 2 . Duelist 1 | . . . . 1 . Sentry 6 | . . . 6 . . Assembled 7 | . . . . . 7 Best Kill Streak 5 | 1 5 . 5 4 5 Combat Bots Only 5 | . 5 . 3 4 4 Max Kills in Single Turn 3 | 1 2 . 1 3 2 Gunslinging . | . . . . . . Exploded 3 | . 2 . . 3 2 Melee . | . . . . . . Uniques/NPCs Destroyed 2 | . . . . . 2 EX-HEX (-9/Exiles) 8R-AWN (-9/Exiles) Combat | -11 -10 -10 -9 -9 -9 -------- Run | Scr Mat Min Mat Min Exi Damage Taken 2965 | . 459 . 696 76 1734 Core 461 | . 42 . 118 . 301 Absorbed by Shields . | . . . . . . Core Remaining (%) 91 | 100 . 83 . . . Volleys Fired 209 | 7 68 . 74 13 47 Largest 2 | 2 2 . 2 2 2 Hottest 67 | 40 55 . 67 67 46 Shots Fired 393 | 14 117 . 148 24 90 Gun 282 | 14 97 . 74 11 86 Cannon 102 | . 17 . 74 11 . Launcher 9 | . 3 . . 2 4 Special . | . . . . . . Kinetic 384 | 14 114 . 148 22 86 Thermal . | . . . . . . Explosive 9 | . 3 . . 2 4 Electromagnetic . | . . . . . . Robot Hit Streak 32 | 7 17 . 13 13 32 Robot Miss Streak 3 | 1 2 . 3 3 1 Penetration Max . | . . . . . . Secondary Targets . | . . . . . . Shots Hit Robots 294 | 10 87 . 94 17 86 Core Hits 128 | 3 45 . 39 10 31 Critical Hits 3 | . 2 . . . 1 Critical Kills . | . . . . . . Critical Parts Destroyed 2 | . 2 . . . . Melee Attacks 4 | . . . . . 4 Impact . | . . . . . . Slashing . | . . . . . . Piercing . | . . . . . . Sneak Attacks 4 | . . . . . 4 Combat Hostiles . | . . . . . . Follow-up Attacks . | . . . . . . Damage Inflicted 5384 | 112 1272 . 1625 572 1803 Guns 3012 | 112 761 . 788 158 1193 Cannons 1260 | . 244 . 837 179 . Explosions 1111 | . 266 . . 235 610 Melee . | . . . . . . Ramming 1 | . 1 . . . . Kinetic 4272 | 112 1005 . 1625 337 1193 Thermal . | . . . . . . Explosive 1111 | . 266 . . 235 610 Electromagnetic . | . . . . . . Impact . | . . . . . . Slashing . | . . . . . . Piercing . | . . . . . . Highest Corruption 1 | . 1 1 . . . Average Corruption 1 | . 1 1 . . . Corruption Purged . | . . . . . . Overload Shots . | . . . . . . Overflow Damage 90 | . . . 6 41 43 Projectiles 6 | . . . 6 . . Explosions 84 | . . . . 41 43 Melee . | . . . . . . Knockbacks 11 | . 2 . 8 1 . Impact . | . . . . . . Kinetic 10 | . 2 . 7 1 . Secondary 1 | . . . 1 . . Self-Inflicted Damage 49 | . . . . . 49 Shots 2 | . . . . . 2 Rammed 2 | . 2 . . . . Targets Rammed 2 | . 2 . . . . Kicked . | . . . . . . Crushed . | . . . . . . Highest Temperature 42 | . 34 . 42 6 . Average Temperature 12 | . 11 . 13 6 . Received Heat Transfer 429 | . 144 . 279 6 . Siege Activations . | . . . . . . Robots Corrupted . | . . . . . . Combat Hostiles . | . . . . . . Parts Fried . | . . . . . . Impact Corruptions . | . . . . . . Robots Melted . | . . . . . . Combat Hostiles . | . . . . . . Parts Melted . | . . . . . . Heat Transferred . | . . . . . . Parts Sabotaged . | . . . . . . Parts Stolen . | . . . . . . Parts Stripped . | . . . . . . Power Chain Reactions . | . . . . . . Missiles Intercepted . | . . . . . . Alert | -11 -10 -10 -9 -9 -9 ------- Run | Scr Mat Min Mat Min Exi Peak Influence 443 | 5 443 233 413 231 . Initial 131 | . 3 125 90 131 . Average 220 | 1 266 166 242 158 . Maximum Alert Level 2 | . 2 1 2 1 . Low Security (%) 39 | 100 23 61 32 62 . Level 1 53 | . 58 38 64 37 . Level 2 6 | . 18 . 2 . . Level 3 . | . . . . . . Level 4 . | . . . . . . Level 5 . | . . . . . . High Security . | . . . . . . Max Security . | . . . . . . Squads Dispatched 11 | . 5 . 6 . . Investigation 6 | . 3 . 3 . . Extermination . | . . . . . . Reinforcement 5 | . 2 . 3 . . Assault . | . . . . . . Garrison . | . . . . . . Intercept . | . . . . . . Construction Impeded . | . . . . . . Haulers Reinforced . | . . . . . . Stealth | -11 -10 -10 -9 -9 -9 --------- Run | Scr Mat Min Mat Min Exi Distress Signals 5 | . 1 . 4 . . Communications Jammed . | . . . . . . Distress Signals . | . . . . . . Times Spotted 85 | . 29 3 31 6 16 Peak Tracking Total 7 | . 6 3 4 4 7 Tactical Retreats 7 | . 1 1 3 . 2 Traps | -11 -10 -10 -9 -9 -9 ------- Run | Scr Mat Min Mat Min Exi Traps Triggered 4 | . 3 . 1 . . Indirectly . | . . . . . . Trap Hack Attempts . | . . . . . . Triggered . | . . . . . . Disarmed . | . . . . . . Reprogrammed . | . . . . . . Reused . | . . . . . . Traps Extracted . | . . . . . . Installed . | . . . . . . Triggered . | . . . . . . Machines | -11 -10 -10 -9 -9 -9 ---------- Run | Scr Mat Min Mat Min Exi Machines Disabled 3 | . . . 1 . 2 Max in Single Turn 2 | . . . 1 . 2 Machines Sabotaged . | . . . . . . Garrisons Compromised . | . . . . . . Overloaded Fab Kills . | . . . . . . Fab Network Shutdowns . | . . . . . . Hacking | -11 -10 -10 -9 -9 -9 --------- Run | Scr Mat Min Mat Min Exi Machines Accessed 12 | . 6 . 4 . 2 Terminals 8 | . 5 . 3 . . Fabricators . | . . . . . . Repair Stations . | . . . . . . Recycling Units 2 | . 1 . 1 . . Scanalyzers . | . . . . . . Garrison Access . | . . . . . . Total Hacks 38 | . 24 . 12 . 2 Successful 23 | . 15 . 6 . 2 Failed 13 | . 8 . 5 . . Catastrophic 3 | . 3 . . . . Database Lockouts 2 | . 1 . 1 . . Manual 25 | . 17 . 7 . 1 Terminals 31 | . 21 . 10 . . Fabricators . | . . . . . . Repair Stations . | . . . . . . Recycling Units 5 | . 3 . 2 . . Scanalyzers . | . . . . . . Garrison Access . | . . . . . . Terminal Hacks 15 | . 9 . 4 . 2 Record 1 | . . . . . 1 Part Schematic 1 | . . . 1 . . Robot Schematic 1 | . 1 . . . . Robot Analysis 3 | . 3 . . . . Prototype ID Bank 2 | . . . 2 . . Branch Access Points 3 | . 2 . 1 . . Terminal Index 1 | . 1 . . . . Locate Traps 1 | . 1 . . . . Zone Layout 1 | . 1 . . . . EX-Prototype ID Bank 1 | . . . . . 1 Fabricator Hacks . | . . . . . . Repair Station Hacks . | . . . . . . Recycling Unit Hacks 3 | . 2 . 1 . . Report Inventory 1 | . . . 1 . . Retrieve Components 2 | . 2 . . . . Scanalyzer . | . . . . . . Garrison Access Hacks . | . . . . . . Unauthorized Hacks 5 | . 4 . 1 . . Terminals 3 | . 3 . . . . Track 2 | . 2 . . . . Operators 1 | . 1 . . . . Fabricators . | . . . . . . Repair Stations . | . . . . . . Recycling Units 2 | . 1 . 1 . . Tunnel 2 | . 1 . 1 . . Scanalyzers . | . . . . . . Garrison Access . | . . . . . . Data Cores Recovered . | . . . . . . Used . | . . . . . . Hacking Detections 8 | . 5 . 3 . . Full Trace Events 2 | . 1 . 1 . . Feedback Events . | . . . . . . Feedback Blocked . | . . . . . . Robot Schematics Acquired 1 | . 1 . . . . Robots Built . | . . . . . . Matter . | . . . . . . Time . | . . . . . . Total Robot Build Rating . | . . . . . . Part Schematics Acquired 1 | . . . 1 . . Parts Built . | . . . . . . Matter . | . . . . . . Time . | . . . . . . Total Part Build Rating . | . . . . . . Parts Repaired . | . . . . . . Time . | . . . . . . Parts Recycled . | . . . . . . Recycled Matter . | . . . . . . Retrieved Matter . | . . . . . . Retrieved Components . | . . . . . . Parts Scanalyzed . | . . . . . . Part Schematics Acquired . | . . . . . . Parts Damaged . | . . . . . . Bothacking | -11 -10 -10 -9 -9 -9 ------------ Run | Scr Mat Min Mat Min Exi Used RIF Installer . | . . . . . . Robots Hacked 4 | . . . . . 4 Non-combat 3 | . . . . . 3 Combat 1 | . . . . . 1 Robot Hacks Applied 4 | . . . . . 4 parse_system 4 | . . . . . 4 Relay Couplers Released . | . . . . . . Robots Rewired . | . . . . . . Allies Hacked . | . . . . . . Hacks Repelled . | . . . . . . Allies | -11 -10 -10 -9 -9 -9 -------- Run | Scr Mat Min Mat Min Exi Total Allies 2 | . . 2 . . . Largest Group 2 | . . 2 2 . . Highest-Rated Group 46 | . . 46 46 . . Highest-Rated Ally 31 | . . 31 31 . . Total Orders . | . . . . . . Ally Attacks 18 | . . 16 2 . . Total Damage 244 | . . 204 40 . . Kills 4 | . . 3 1 . . Allies Corrupted . | . . . . . . Allies Melted . | . . . . . . Intel | -11 -10 -10 -9 -9 -9 ------- Run | Scr Mat Min Mat Min Exi Robot Analysis Total 3 | . 3 . . . . Derelict Logs Recovered 2 | . . 1 . 1 . Drone Launches . | . . . . . . Drone Recoveries . | . . . . . . Exploration | -11 -10 -10 -9 -9 -9 ------------- Run | Scr Mat Min Mat Min Exi Turns Passed 5269 | 113 1070 380 1279 526 1901 Spaces Moved 2392 | 46 475 194 501 252 924 Core 2 | 2 . . . . . Treads 2390 | 44 475 194 501 252 924 Legs . | . . . . . . Wheels . | . . . . . . Hover . | . . . . . . Flight . | . . . . . . Fastest Speed 50 | 50 160 180 180 185 165 Average Speed 183 | 155 172 180 192 185 184 Slowest Speed 200 | 160 180 180 200 185 185 Overloaded Moves . | . . . . . . Propulsion Burnouts . | . . . . . . Robots Hopped . | . . . . . . Cave-ins Triggered . | . . . . . . Exploration Rate (%) 54 | 5 78 53 45 60 87 Regions Visited 5 Branch Regions 3 Pre-discovered Areas 3 | . 1 . 1 . 1 Known Exits Taken 2 | . 1 . 1 . . Unknown Exits Taken 3 | 1 . 1 . 1 . Scrap Searched 2 | . . 1 . 1 . Spaces Dug 13 | . . . . 13 . Terrain Destroyed 79 | . 27 . 4 29 19 Melee . | . . . . . . Projectile 6 | . . . 4 2 . AOE 73 | . 27 . . 27 19 Terrain Rammed . | . . . . . . Walls Destroyed . | . . . . . . Machines Disabled . | . . . . . . Actions | -11 -10 -10 -9 -9 -9 --------- Run | Scr Mat Min Mat Min Exi Total 2936 | 72 625 228 695 289 1027 Wait 122 | 9 26 26 47 14 . Move 2387 | 45 474 193 500 251 924 Hop . | . . . . . . Pick Up 100 | 4 31 3 31 2 29 Fast Attach 13 | 7 . . 3 2 1 Attach 14 | . 3 . 3 . 8 Detach 2 | . . . 1 1 . Swap 20 | . 5 3 7 2 3 Drop 63 | . 16 3 29 4 11 Fire 209 | 7 68 . 74 13 47 Melee 4 | . . . . . 4 Ram . | . . . . . . Kick . | . . . . . . Crush 2 | . 2 . . . . Escape Stasis . | . . . . . . Rewire . | . . . . . . Trap . | . . . . . . Miscellaneous . | . . . . . . Route ------- -11/Scrapyard -10/Materials (discovered 3 exits: *Mat / *Min x2) -10/Mines -9/Materials (discovered 3 exits: [*Mat] / *Min x2) -9/Mines (discovered 4 exits: [*Mat x2] / *Exi / [Zio]) -9/Exiles (discovered 1 exit: [*Min]) History --------- Turn | Location | Event 6 | -11/Scrapyard | Discovered new exit (range 15) 114 | -11/Scrapyard | Entered Materials 229 | -10/Materials | Central database locked down 229 | -10/Materials | Identified exit to Mines 306 | -10/Materials | Build established: Mutant 672 | -10/Materials | Discovered new exit (range 10) 895 | -10/Materials | Build established: Hauler-Mutant 1184 | -10/Materials | Entered Mines 1199 | -10/Mines | Learned Materials emergency access door positions 1494 | -10/Mines | A weapon hastily lodged in a ceiling crevice suddenly fell to the ground 1517 | -10/Mines | Discovered new exit (range 8) 1564 | -10/Mines | Entered Materials 1564 | -9/Materials | Accompanied by 2 allies 1564 | -9/Materials | Evolved 2 slots: Utility x2 1570 | -9/Materials | Led the pair of lost Derelicts to an unsafe place 1852 | -9/Materials | Discovered new exit (range 9) 2536 | -9/Materials | Identified exit to Mines 2536 | -9/Materials | Central database locked down 2843 | -9/Materials | Entered Mines 2884 | -9/Mines | Found a damaged Exp. Sensor Array with a note attached 2888 | -9/Mines | Found Prototype Device 2888 | -9/Mines | Identified Exp. Sensor Array 3041 | -9/Mines | Discovered new exit (range 4) 3252 | -9/Mines | Discovered new exit (range 14) 3289 | -9/Mines | A Derelict revealed a hidden shortcut to a safe place 3321 | -9/Mines | Learned Materials terminal intel 3362 | -9/Mines | Deemed a non-threat by the Exiles lab entrance 3362 | -9/Mines | Discovered new exit (range 5) 3369 | -9/Mines | Entered Exiles 3399 | -9/Exiles | Discovered new exit (range 15) 3419 | -9/Exiles | Met 8R-AWN 3448 | -9/Exiles | Met EX-HEX 3838 | -9/Exiles | Met EX-BIN 3925 | -9/Exiles | Met EX-DEC 3932 | -9/Exiles | Learned location of Zion (-7) 4020 | -9/Exiles | Visited The Gauntlet 4555 | -9/Exiles | Aligned with FarCom system 4557 | -9/Exiles | Given EX-Vault access code 4605 | -9/Exiles | Opened EX-Vault 4647 | -9/Exiles | Warned to stay clear of 0b10 Research branches 5030 | -9/Exiles | Attacked by the Exiles 5035 | -9/Exiles | Destroyed EX-HEX 5060 | -9/Exiles | Core integrity fell below 50% 5153 | -9/Exiles | Destroyed 8R-AWN 5164 | -9/Exiles | Found Exp. Targeting Computer 5167 | -9/Exiles | Found AS-neutralizer No. 17b 5263 | -9/Exiles | Core integrity fell below 20% 5270 | -9/Exiles | Destroyed by DAS Turret with DAS Cannon Last Messages --------------- 05140_ Adv. Treads destroyed. 05144_ Penetrated by HV Slug. 05144_ Critical hit. 05144_ Imp. Assault Rifle destroyed. 05144_ Penetrated by HV Slug. 05153_ 8R-AWN destroyed. 05160_ Acquired 119 matter. 05164_ Acquired Exp. Targeting Computer. 05167_ Acquired AS-neutralizer No. 17b. 05171_ as-52381 destroyed. 05174_ Extracted 50 matter. 05176_ Acquired 20 matter. 05180_ Acquired Lgt. Neutrino Core. 05186_ The unstable cave ceiling collapses. 05243_ Hvy. Ion Engine destroyed. 05244_ Machine disabled. 05250_ Lgt. Angular Momentum Engine destroyed. 05250_ Hrd. Light Armor Plating destroyed. 05266_ Imp. Assault Rifle destroyed. 05268_ Adv. Treads destroyed. Map ----- +----------------------------------------------------+ | #######?????????????????????????#" """"# | | # ! "#?????????????????????????#" """# | | # "#?????????????????????????#" """# | | # "#?????????????????????????#" """# | | # ""#????????????####?????????#" """# | | " ""#???????????? """????????#" """# | | " ""#????????????" """#???????## """" | | " ###???????????"" #????????# """# | | #????????????#"" #????????#" "X" """" | | ##???????????#"" "#????????#" """ # | | "#???????????? ""?????????#" """""""""# | | ###???????????" "?????????##" ########### | | ##??????????# #????????##"" #?????????? | | #"" ######???### ###?######"" #?????????? | | ##" """#####X# #"###""""""" ##????????? | | ?#" """""" " "" ##???##### | | ?#"# "" """ " #####"""" | | ?#### " " " "" | | ????### "" | | ??????### " | | ????????## | | ?????????## | | ??????????##" | | ???????????#""" """""" | | ??????????##" ######""" | | ??????????#"" @ ""##????#####""" | | ?????????##""" """##?????????##""" | | ?????????#""" ""##???????????#"""" | | ?????????#""" ""#???????????##""!! | | ?????????#"" ########??####"" | | ?????????#"""t ## ####""" | | ?????????#"" """" | | ?????????##"" | | ??????????#"""" | | ??????????## " | | ???????????#" " "" " | | ???????????#"""" ""## ##""" " " "" | | ???????????#"" ""#### ######""" """ | | ???????????#" """"##??# #????###""""# | | ???????????#""" """#??## ####???###### | | ???????????## ""##??#! "!#????????? | | ????????????#"" """##???#" !#????????? | | ????????????##""" ##????#" "#????????? | | ?????????????##"""" ##?????#!!""!"#????????? | | ??????????????### #??????########????????? | | ????????????????##### ##??????????????????????? | | ????????????????????## #???????????????????????? | | ?????????????????????# #???????????????????????? | | ?????????????????????# #???????????????????????? | | ?????????????????????# #???????????????????????? | +----------------------------------------------------+ Best States ------------- Heat Dissipation 28 Energy Generation 19 Energy Capacity 280 Matter Stores 300 Matter Capacity 300 Sight Range 16 Robot Scan Range 30 Terrain Scan Density 10 Armor Coverage 150 Propulsion Shielding 33 Evasion (%) 40 Recoil Reduction 2 Offensive Hacking 10 Item Schematics ----------------- Imp. Treads | -9/Materials | Hacked Robot Schematics ------------------ M-13 Machinist | -10/Materials | Hacked Fabricated ------------ Nothing Alien Tech Used ----------------- None Achievements -------------- None Challenges ------------ None Game ------ Seed SigixPortableShifter Manual? 0 Play Time 00:40:13 Cumulative 405.2 hours Start 2020.11.07 @ 22:10:34 End 2020.11.28 @ 01:50:24 Sessions 7 Manual Loads 0 Difficulty Rogue Special Mode Halloween2020/ForbiddenLore Game No. 149 Rogue 146 Adventurer 3 Explorer 0 Win Type - Total 6 Types 3/1/0/1/0/1/0/0/0 Lore% 90 Gallery% 94 Achievement% 76 Wizard Run 0 Options --------- ASCII 0 Keyboard 0 Movement Numpad Keybinds 0 Fullscreen 1 Font 18/SmallcapsGlow Map View 76x50 Tactical HUD 1 Map Filters NONE Filters NONE Steam 1 RUN: 713c4184-8eb2-4349-a429-e93de6203e6e